{"text_format":"3","workbook":"xlsx","n_sheets":3,"sheets":["Podaci o potencijalnom klijentu","Predviđena prodaja ","Mesečna ponderisana predviđanja"],"not_rendered":{"charts":1,"defined_names":10},"read":"whole","date_system":"1900"}

{"sheet":"Podaci o potencijalnom klijentu","index":0,"n_rows":9,"n_cols":10,"rows_kept":9,"merged":[[3,1,3,8]]}
[null,"Ime preduzeća"]
[null,"Detaljno praćenje potencijalnih klijenata"]
[null,{"$f":"TODAY()","v":"2018-07-26"}]
[null,{"$f":"Ime_preduzeća","v":"Ime preduzeća"},{"$nulls":7},"POVERLJIVO"]
[null,"Ime potencijalnog klijenta","Kontakt potencijalnog klijenta","Potencijalni klijent \nIzvor","Potencijalni klijent \nRegion","Potencijalni klijent \nTip","Potencijalne mogućnosti za poslovanje","Prilika \nza prodaju","Predviđanje \nZatvori","Ponderisano predviđanje"]
[null,"A. Datum Corporation",{"$nulls":3},"Strateški",{"v":300000,"d":"300,000.00 RSD"},{"v":0.9,"d":"90%"},"Januar",{"$f":"IFERROR(IF(PodaciOPotencijalnomKlijentu[Prilika \nza prodaju]<>\"\",PodaciOPotencijalnomKlijentu[Prilika \nza prodaju]*PodaciOPotencijalnomKlijentu[Potencijalne mogućnosti za poslovanje],\"\"),\"\")","v":{"v":270000,"d":"270,000.00 RSD"}}]
[null,"Adventure Works",{"$nulls":3},"Strateški",{"v":200000,"d":"200,000.00 RSD"},{"v":0.1,"d":"10%"},"Februar",{"$f":"IFERROR(IF(PodaciOPotencijalnomKlijentu[Prilika \nza prodaju]<>\"\",PodaciOPotencijalnomKlijentu[Prilika \nza prodaju]*PodaciOPotencijalnomKlijentu[Potencijalne mogućnosti za poslovanje],\"\"),\"\")","v":{"v":20000,"d":"20,000.00 RSD"}}]
[null,"Alpine Ski House",{"$nulls":3},"Taktički",{"v":100000,"d":"100,000.00 RSD"},{"v":0.2,"d":"20%"},"Mart",{"$f":"IFERROR(IF(PodaciOPotencijalnomKlijentu[Prilika \nza prodaju]<>\"\",PodaciOPotencijalnomKlijentu[Prilika \nza prodaju]*PodaciOPotencijalnomKlijentu[Potencijalne mogućnosti za poslovanje],\"\"),\"\")","v":{"v":20000,"d":"20,000.00 RSD"}}]
[null,"Zbir",{"$nulls":4},{"$f":"SUBTOTAL(109,PodaciOPotencijalnomKlijentu[Potencijalne mogućnosti za poslovanje])","v":{"v":600000,"d":"600,000.00 RSD"}},null,null,{"$f":"SUBTOTAL(109,PodaciOPotencijalnomKlijentu[Ponderisano predviđanje])","v":{"v":310000,"d":"310,000.00 RSD"}}]

{"sheet":"Predviđena prodaja ","index":1,"n_rows":21,"n_cols":14,"rows_kept":21,"merged":[[3,1,3,11],[3,12,3,13]]}
[null,{"$f":"Ime_preduzeća","v":"Ime preduzeća"}]
[null,"Predviđena prodaja"]
[null,{"$f":"DatumPraćenja","v":"2018-07-26"}]
[null,{"$f":"Ime_preduzeća","v":"Ime preduzeća"},{"$nulls":10},"POVERLJIVO"]
[null,"Ime potencijalnog klijenta","Januar \nPredviđanje","Februar \nPredviđanje","Mart \nPredviđanje","April \nPredviđanje","Maj \nPredviđanje","Jun \nPredviđanje","Predviđanje za jul","Avgust \nPredviđanje","Septembar \nPredviđanje","Oktobar \nPredviđanje","Novembar \nPredviđanje","Decembar \nPredviđanje"]
[null,{"$f":"IFERROR(IF(AND(PodaciOPotencijalnomKlijentu[Ime potencijalnog klijenta] <> \"\", ROW(PredviđenaProdaja[Ime potencijalnog klijenta])<>PoslednjaStavka),PodaciOPotencijalnomKlijentu[Ime potencijalnog klijenta], \"\"),\"\")","v":"A. Datum Corporation"},{"$f":"IFERROR(IF(PodaciOPotencijalnomKlijentu[Predviđanje \nZatvori] <>\"\",IF(PodaciOPotencijalnomKlijentu[Predviđanje \nZatvori]= \"Januar\",PodaciOPotencijalnomKlijentu[Ponderisano predviđanje],0),\"\"),\"\")","v":{"v":270000,"d":"270,000 RSD"}},{"$f":"IFERROR(IF(PodaciOPotencijalnomKlijentu[Predviđanje \nZatvori] <>\"\",IF(PodaciOPotencijalnomKlijentu[Predviđanje \nZatvori] = \"Februar\",PodaciOPotencijalnomKlijentu[Ponderisano predviđanje],0),\"\"),\"\")","v":{"v":0,"d":"0 RSD"}},{"$f":"IFERROR(IF(PodaciOPotencijalnomKlijentu[Predviđanje \nZatvori] <>\"\",IF(PodaciOPotencijalnomKlijentu[Predviđanje \nZatvori] = \"Mart\",PodaciOPotencijalnomKlijentu[Ponderisano predviđanje],0),\"\"),\"\")","v":{"v":0,"d":"0 RSD"}},{"$f":"IFERROR(IF(PodaciOPotencijalnomKlijentu[Predviđanje \nZatvori] <>\"\",IF(PodaciOPotencijalnomKlijentu[Predviđanje \nZatvori] = \"April\",PodaciOPotencijalnomKlijentu[Ponderisano predviđanje],0),\"\"),\"\")","v":{"v":0,"d":"0 RSD"}},{"$f":"IFERROR(IF(PodaciOPotencijalnomKlijentu[Predviđanje \nZatvori] <>\"\",IF(PodaciOPotencijalnomKlijentu[Predviđanje \nZatvori] = \"Maj\",PodaciOPotencijalnomKlijentu[Ponderisano predviđanje],0),\"\"),\"\")","v":{"v":0,"d":"0 RSD"}},{"$f":"IFERROR(IF(PodaciOPotencijalnomKlijentu[Predviđanje \nZatvori] <>\"\",IF(PodaciOPotencijalnomKlijentu[Predviđanje \nZatvori] = \"Jun\",PodaciOPotencijalnomKlijentu[Ponderisano predviđanje],0),\"\"),\"\")","v":{"v":0,"d":"0 RSD"}},{"$f":"IFERROR(IF(PodaciOPotencijalnomKlijentu[Predviđanje \nZatvori] <>\"\",IF(PodaciOPotencijalnomKlijentu[Predviđanje \nZatvori] = \"Jul\",PodaciOPotencijalnomKlijentu[Ponderisano predviđanje],0),\"\"),\"\")","v":{"v":0,"d":"0 RSD"}},{"$f":"IFERROR(IF(PodaciOPotencijalnomKlijentu[Predviđanje \nZatvori] <>\"\",IF(PodaciOPotencijalnomKlijentu[Predviđanje \nZatvori] = \"Avgust\",PodaciOPotencijalnomKlijentu[Ponderisano predviđanje],0),\"\"),\"\")","v":{"v":0,"d":"0 RSD"}},{"$f":"IFERROR(IF(PodaciOPotencijalnomKlijentu[Predviđanje \nZatvori] <>\"\",IF(PodaciOPotencijalnomKlijentu[Predviđanje \nZatvori] = \"Septembar\",PodaciOPotencijalnomKlijentu[Ponderisano predviđanje],0),\"\"),\"\")","v":{"v":0,"d":"0 RSD"}},{"$f":"IFERROR(IF(PodaciOPotencijalnomKlijentu[Predviđanje \nZatvori] <>\"\",IF(PodaciOPotencijalnomKlijentu[Predviđanje \nZatvori] = \"Oktobar\",PodaciOPotencijalnomKlijentu[Ponderisano predviđanje],0),\"\"),\"\")","v":{"v":0,"d":"0 RSD"}},{"$f":"IFERROR(IF(PodaciOPotencijalnomKlijentu[Predviđanje \nZatvori] <>\"\",IF(PodaciOPotencijalnomKlijentu[Predviđanje \nZatvori] = \"Novembar\",PodaciOPotencijalnomKlijentu[Ponderisano predviđanje],0),\"\"),\"\")","v":{"v":0,"d":"0 RSD"}},{"$f":"IFERROR(IF(PodaciOPotencijalnomKlijentu[Predviđanje \nZatvori] <>\"\",IF(PodaciOPotencijalnomKlijentu[Predviđanje \nZatvori] = \"Decembar\",PodaciOPotencijalnomKlijentu[Ponderisano predviđanje],0),\"\"),\"\")","v":{"v":0,"d":"0 RSD"}}]
[null,{"$f":"IFERROR(IF(AND(PodaciOPotencijalnomKlijentu[Ime potencijalnog klijenta] <> \"\", ROW(PredviđenaProdaja[Ime potencijalnog klijenta])<>PoslednjaStavka),PodaciOPotencijalnomKlijentu[Ime potencijalnog klijenta], \"\"),\"\")","v":"Adventure Works"},{"$f":"IFERROR(IF(PodaciOPotencijalnomKlijentu[Predviđanje \nZatvori] <>\"\",IF(PodaciOPotencijalnomKlijentu[Predviđanje \nZatvori]= \"Januar\",PodaciOPotencijalnomKlijentu[Ponderisano predviđanje],0),\"\"),\"\")","v":{"v":0,"d":"0 RSD"}},{"$f":"IFERROR(IF(PodaciOPotencijalnomKlijentu[Predviđanje \nZatvori] <>\"\",IF(PodaciOPotencijalnomKlijentu[Predviđanje \nZatvori] = \"Februar\",PodaciOPotencijalnomKlijentu[Ponderisano predviđanje],0),\"\"),\"\")","v":{"v":20000,"d":"20,000 RSD"}},{"$f":"IFERROR(IF(PodaciOPotencijalnomKlijentu[Predviđanje \nZatvori] <>\"\",IF(PodaciOPotencijalnomKlijentu[Predviđanje \nZatvori] = \"Mart\",PodaciOPotencijalnomKlijentu[Ponderisano predviđanje],0),\"\"),\"\")","v":{"v":0,"d":"0 RSD"}},{"$f":"IFERROR(IF(PodaciOPotencijalnomKlijentu[Predviđanje \nZatvori] <>\"\",IF(PodaciOPotencijalnomKlijentu[Predviđanje \nZatvori] = \"April\",PodaciOPotencijalnomKlijentu[Ponderisano predviđanje],0),\"\"),\"\")","v":{"v":0,"d":"0 RSD"}},{"$f":"IFERROR(IF(PodaciOPotencijalnomKlijentu[Predviđanje \nZatvori] <>\"\",IF(PodaciOPotencijalnomKlijentu[Predviđanje \nZatvori] = \"Maj\",PodaciOPotencijalnomKlijentu[Ponderisano predviđanje],0),\"\"),\"\")","v":{"v":0,"d":"0 RSD"}},{"$f":"IFERROR(IF(PodaciOPotencijalnomKlijentu[Predviđanje \nZatvori] <>\"\",IF(PodaciOPotencijalnomKlijentu[Predviđanje \nZatvori] = \"Jun\",PodaciOPotencijalnomKlijentu[Ponderisano predviđanje],0),\"\"),\"\")","v":{"v":0,"d":"0 RSD"}},{"$f":"IFERROR(IF(PodaciOPotencijalnomKlijentu[Predviđanje \nZatvori] <>\"\",IF(PodaciOPotencijalnomKlijentu[Predviđanje \nZatvori] = \"Jul\",PodaciOPotencijalnomKlijentu[Ponderisano predviđanje],0),\"\"),\"\")","v":{"v":0,"d":"0 RSD"}},{"$f":"IFERROR(IF(PodaciOPotencijalnomKlijentu[Predviđanje \nZatvori] <>\"\",IF(PodaciOPotencijalnomKlijentu[Predviđanje \nZatvori] = \"Avgust\",PodaciOPotencijalnomKlijentu[Ponderisano predviđanje],0),\"\"),\"\")","v":{"v":0,"d":"0 RSD"}},{"$f":"IFERROR(IF(PodaciOPotencijalnomKlijentu[Predviđanje \nZatvori] <>\"\",IF(PodaciOPotencijalnomKlijentu[Predviđanje \nZatvori] = \"Septembar\",PodaciOPotencijalnomKlijentu[Ponderisano predviđanje],0),\"\"),\"\")","v":{"v":0,"d":"0 RSD"}},{"$f":"IFERROR(IF(PodaciOPotencijalnomKlijentu[Predviđanje \nZatvori] <>\"\",IF(PodaciOPotencijalnomKlijentu[Predviđanje \nZatvori] = \"Oktobar\",PodaciOPotencijalnomKlijentu[Ponderisano predviđanje],0),\"\"),\"\")","v":{"v":0,"d":"0 RSD"}},{"$f":"IFERROR(IF(PodaciOPotencijalnomKlijentu[Predviđanje \nZatvori] <>\"\",IF(PodaciOPotencijalnomKlijentu[Predviđanje \nZatvori] = \"Novembar\",PodaciOPotencijalnomKlijentu[Ponderisano predviđanje],0),\"\"),\"\")","v":{"v":0,"d":"0 RSD"}},{"$f":"IFERROR(IF(PodaciOPotencijalnomKlijentu[Predviđanje \nZatvori] <>\"\",IF(PodaciOPotencijalnomKlijentu[Predviđanje \nZatvori] = \"Decembar\",PodaciOPotencijalnomKlijentu[Ponderisano predviđanje],0),\"\"),\"\")","v":{"v":0,"d":"0 RSD"}}]
[null,{"$f":"IFERROR(IF(AND(PodaciOPotencijalnomKlijentu[Ime potencijalnog klijenta] <> \"\", ROW(PredviđenaProdaja[Ime potencijalnog klijenta])<>PoslednjaStavka),PodaciOPotencijalnomKlijentu[Ime potencijalnog klijenta], \"\"),\"\")","v":"Alpine Ski House"},{"$f":"IFERROR(IF(PodaciOPotencijalnomKlijentu[Predviđanje \nZatvori] <>\"\",IF(PodaciOPotencijalnomKlijentu[Predviđanje \nZatvori]= \"Januar\",PodaciOPotencijalnomKlijentu[Ponderisano predviđanje],0),\"\"),\"\")","v":{"v":0,"d":"0 RSD"}},{"$f":"IFERROR(IF(PodaciOPotencijalnomKlijentu[Predviđanje \nZatvori] <>\"\",IF(PodaciOPotencijalnomKlijentu[Predviđanje \nZatvori] = \"Februar\",PodaciOPotencijalnomKlijentu[Ponderisano predviđanje],0),\"\"),\"\")","v":{"v":0,"d":"0 RSD"}},{"$f":"IFERROR(IF(PodaciOPotencijalnomKlijentu[Predviđanje \nZatvori] <>\"\",IF(PodaciOPotencijalnomKlijentu[Predviđanje \nZatvori] = \"Mart\",PodaciOPotencijalnomKlijentu[Ponderisano predviđanje],0),\"\"),\"\")","v":{"v":20000,"d":"20,000 RSD"}},{"$f":"IFERROR(IF(PodaciOPotencijalnomKlijentu[Predviđanje \nZatvori] <>\"\",IF(PodaciOPotencijalnomKlijentu[Predviđanje \nZatvori] = \"April\",PodaciOPotencijalnomKlijentu[Ponderisano predviđanje],0),\"\"),\"\")","v":{"v":0,"d":"0 RSD"}},{"$f":"IFERROR(IF(PodaciOPotencijalnomKlijentu[Predviđanje \nZatvori] <>\"\",IF(PodaciOPotencijalnomKlijentu[Predviđanje \nZatvori] = \"Maj\",PodaciOPotencijalnomKlijentu[Ponderisano predviđanje],0),\"\"),\"\")","v":{"v":0,"d":"0 RSD"}},{"$f":"IFERROR(IF(PodaciOPotencijalnomKlijentu[Predviđanje \nZatvori] <>\"\",IF(PodaciOPotencijalnomKlijentu[Predviđanje \nZatvori] = \"Jun\",PodaciOPotencijalnomKlijentu[Ponderisano predviđanje],0),\"\"),\"\")","v":{"v":0,"d":"0 RSD"}},{"$f":"IFERROR(IF(PodaciOPotencijalnomKlijentu[Predviđanje \nZatvori] <>\"\",IF(PodaciOPotencijalnomKlijentu[Predviđanje \nZatvori] = \"Jul\",PodaciOPotencijalnomKlijentu[Ponderisano predviđanje],0),\"\"),\"\")","v":{"v":0,"d":"0 RSD"}},{"$f":"IFERROR(IF(PodaciOPotencijalnomKlijentu[Predviđanje \nZatvori] <>\"\",IF(PodaciOPotencijalnomKlijentu[Predviđanje \nZatvori] = \"Avgust\",PodaciOPotencijalnomKlijentu[Ponderisano predviđanje],0),\"\"),\"\")","v":{"v":0,"d":"0 RSD"}},{"$f":"IFERROR(IF(PodaciOPotencijalnomKlijentu[Predviđanje \nZatvori] <>\"\",IF(PodaciOPotencijalnomKlijentu[Predviđanje \nZatvori] = \"Septembar\",PodaciOPotencijalnomKlijentu[Ponderisano predviđanje],0),\"\"),\"\")","v":{"v":0,"d":"0 RSD"}},{"$f":"IFERROR(IF(PodaciOPotencijalnomKlijentu[Predviđanje \nZatvori] <>\"\",IF(PodaciOPotencijalnomKlijentu[Predviđanje \nZatvori] = \"Oktobar\",PodaciOPotencijalnomKlijentu[Ponderisano predviđanje],0),\"\"),\"\")","v":{"v":0,"d":"0 RSD"}},{"$f":"IFERROR(IF(PodaciOPotencijalnomKlijentu[Predviđanje \nZatvori] <>\"\",IF(PodaciOPotencijalnomKlijentu[Predviđanje \nZatvori] = \"Novembar\",PodaciOPotencijalnomKlijentu[Ponderisano predviđanje],0),\"\"),\"\")","v":{"v":0,"d":"0 RSD"}},{"$f":"IFERROR(IF(PodaciOPotencijalnomKlijentu[Predviđanje \nZatvori] <>\"\",IF(PodaciOPotencijalnomKlijentu[Predviđanje \nZatvori] = \"Decembar\",PodaciOPotencijalnomKlijentu[Ponderisano predviđanje],0),\"\"),\"\")","v":{"v":0,"d":"0 RSD"}}]
[null,{"$f":"IFERROR(IF(AND(PodaciOPotencijalnomKlijentu[Ime potencijalnog klijenta] <> \"\", ROW(PredviđenaProdaja[Ime potencijalnog klijenta])<>PoslednjaStavka),PodaciOPotencijalnomKlijentu[Ime potencijalnog klijenta], \"\"),\"\")","v":""},{"$f":"IFERROR(IF(PodaciOPotencijalnomKlijentu[Predviđanje \nZatvori] <>\"\",IF(PodaciOPotencijalnomKlijentu[Predviđanje \nZatvori]= \"Januar\",PodaciOPotencijalnomKlijentu[Ponderisano predviđanje],0),\"\"),\"\")","v":""},{"$f":"IFERROR(IF(PodaciOPotencijalnomKlijentu[Predviđanje \nZatvori] <>\"\",IF(PodaciOPotencijalnomKlijentu[Predviđanje \nZatvori] = \"Februar\",PodaciOPotencijalnomKlijentu[Ponderisano predviđanje],0),\"\"),\"\")","v":""},{"$f":"IFERROR(IF(PodaciOPotencijalnomKlijentu[Predviđanje \nZatvori] <>\"\",IF(PodaciOPotencijalnomKlijentu[Predviđanje \nZatvori] = \"Mart\",PodaciOPotencijalnomKlijentu[Ponderisano predviđanje],0),\"\"),\"\")","v":""},{"$f":"IFERROR(IF(PodaciOPotencijalnomKlijentu[Predviđanje \nZatvori] <>\"\",IF(PodaciOPotencijalnomKlijentu[Predviđanje \nZatvori] = \"April\",PodaciOPotencijalnomKlijentu[Ponderisano predviđanje],0),\"\"),\"\")","v":""},{"$f":"IFERROR(IF(PodaciOPotencijalnomKlijentu[Predviđanje \nZatvori] <>\"\",IF(PodaciOPotencijalnomKlijentu[Predviđanje \nZatvori] = \"Maj\",PodaciOPotencijalnomKlijentu[Ponderisano predviđanje],0),\"\"),\"\")","v":""},{"$f":"IFERROR(IF(PodaciOPotencijalnomKlijentu[Predviđanje \nZatvori] <>\"\",IF(PodaciOPotencijalnomKlijentu[Predviđanje \nZatvori] = \"Jun\",PodaciOPotencijalnomKlijentu[Ponderisano predviđanje],0),\"\"),\"\")","v":""},{"$f":"IFERROR(IF(PodaciOPotencijalnomKlijentu[Predviđanje \nZatvori] <>\"\",IF(PodaciOPotencijalnomKlijentu[Predviđanje \nZatvori] = \"Jul\",PodaciOPotencijalnomKlijentu[Ponderisano predviđanje],0),\"\"),\"\")","v":""},{"$f":"IFERROR(IF(PodaciOPotencijalnomKlijentu[Predviđanje \nZatvori] <>\"\",IF(PodaciOPotencijalnomKlijentu[Predviđanje \nZatvori] = \"Avgust\",PodaciOPotencijalnomKlijentu[Ponderisano predviđanje],0),\"\"),\"\")","v":""},{"$f":"IFERROR(IF(PodaciOPotencijalnomKlijentu[Predviđanje \nZatvori] <>\"\",IF(PodaciOPotencijalnomKlijentu[Predviđanje \nZatvori] = \"Septembar\",PodaciOPotencijalnomKlijentu[Ponderisano predviđanje],0),\"\"),\"\")","v":""},{"$f":"IFERROR(IF(PodaciOPotencijalnomKlijentu[Predviđanje \nZatvori] <>\"\",IF(PodaciOPotencijalnomKlijentu[Predviđanje \nZatvori] = \"Oktobar\",PodaciOPotencijalnomKlijentu[Ponderisano predviđanje],0),\"\"),\"\")","v":""},{"$f":"IFERROR(IF(PodaciOPotencijalnomKlijentu[Predviđanje \nZatvori] <>\"\",IF(PodaciOPotencijalnomKlijentu[Predviđanje \nZatvori] = \"Novembar\",PodaciOPotencijalnomKlijentu[Ponderisano predviđanje],0),\"\"),\"\")","v":""},{"$f":"IFERROR(IF(PodaciOPotencijalnomKlijentu[Predviđanje \nZatvori] <>\"\",IF(PodaciOPotencijalnomKlijentu[Predviđanje \nZatvori] = \"Decembar\",PodaciOPotencijalnomKlijentu[Ponderisano predviđanje],0),\"\"),\"\")","v":""}]
[null,{"$f":"IFERROR(IF(AND(PodaciOPotencijalnomKlijentu[Ime potencijalnog klijenta] <> \"\", ROW(PredviđenaProdaja[Ime potencijalnog klijenta])<>PoslednjaStavka),PodaciOPotencijalnomKlijentu[Ime potencijalnog klijenta], \"\"),\"\")","v":""},{"$f":"IFERROR(IF(PodaciOPotencijalnomKlijentu[Predviđanje \nZatvori] <>\"\",IF(PodaciOPotencijalnomKlijentu[Predviđanje \nZatvori]= \"Januar\",PodaciOPotencijalnomKlijentu[Ponderisano predviđanje],0),\"\"),\"\")","v":""},{"$f":"IFERROR(IF(PodaciOPotencijalnomKlijentu[Predviđanje \nZatvori] <>\"\",IF(PodaciOPotencijalnomKlijentu[Predviđanje \nZatvori] = \"Februar\",PodaciOPotencijalnomKlijentu[Ponderisano predviđanje],0),\"\"),\"\")","v":""},{"$f":"IFERROR(IF(PodaciOPotencijalnomKlijentu[Predviđanje \nZatvori] <>\"\",IF(PodaciOPotencijalnomKlijentu[Predviđanje \nZatvori] = \"Mart\",PodaciOPotencijalnomKlijentu[Ponderisano predviđanje],0),\"\"),\"\")","v":""},{"$f":"IFERROR(IF(PodaciOPotencijalnomKlijentu[Predviđanje \nZatvori] <>\"\",IF(PodaciOPotencijalnomKlijentu[Predviđanje \nZatvori] = \"April\",PodaciOPotencijalnomKlijentu[Ponderisano predviđanje],0),\"\"),\"\")","v":""},{"$f":"IFERROR(IF(PodaciOPotencijalnomKlijentu[Predviđanje \nZatvori] <>\"\",IF(PodaciOPotencijalnomKlijentu[Predviđanje \nZatvori] = \"Maj\",PodaciOPotencijalnomKlijentu[Ponderisano predviđanje],0),\"\"),\"\")","v":""},{"$f":"IFERROR(IF(PodaciOPotencijalnomKlijentu[Predviđanje \nZatvori] <>\"\",IF(PodaciOPotencijalnomKlijentu[Predviđanje \nZatvori] = \"Jun\",PodaciOPotencijalnomKlijentu[Ponderisano predviđanje],0),\"\"),\"\")","v":""},{"$f":"IFERROR(IF(PodaciOPotencijalnomKlijentu[Predviđanje \nZatvori] <>\"\",IF(PodaciOPotencijalnomKlijentu[Predviđanje \nZatvori] = \"Jul\",PodaciOPotencijalnomKlijentu[Ponderisano predviđanje],0),\"\"),\"\")","v":""},{"$f":"IFERROR(IF(PodaciOPotencijalnomKlijentu[Predviđanje \nZatvori] <>\"\",IF(PodaciOPotencijalnomKlijentu[Predviđanje \nZatvori] = \"Avgust\",PodaciOPotencijalnomKlijentu[Ponderisano predviđanje],0),\"\"),\"\")","v":""},{"$f":"IFERROR(IF(PodaciOPotencijalnomKlijentu[Predviđanje \nZatvori] <>\"\",IF(PodaciOPotencijalnomKlijentu[Predviđanje \nZatvori] = \"Septembar\",PodaciOPotencijalnomKlijentu[Ponderisano predviđanje],0),\"\"),\"\")","v":""},{"$f":"IFERROR(IF(PodaciOPotencijalnomKlijentu[Predviđanje \nZatvori] <>\"\",IF(PodaciOPotencijalnomKlijentu[Predviđanje \nZatvori] = \"Oktobar\",PodaciOPotencijalnomKlijentu[Ponderisano predviđanje],0),\"\"),\"\")","v":""},{"$f":"IFERROR(IF(PodaciOPotencijalnomKlijentu[Predviđanje \nZatvori] <>\"\",IF(PodaciOPotencijalnomKlijentu[Predviđanje \nZatvori] = \"Novembar\",PodaciOPotencijalnomKlijentu[Ponderisano predviđanje],0),\"\"),\"\")","v":""},{"$f":"IFERROR(IF(PodaciOPotencijalnomKlijentu[Predviđanje \nZatvori] <>\"\",IF(PodaciOPotencijalnomKlijentu[Predviđanje \nZatvori] = \"Decembar\",PodaciOPotencijalnomKlijentu[Ponderisano predviđanje],0),\"\"),\"\")","v":""}]
[null,{"$f":"IFERROR(IF(AND(PodaciOPotencijalnomKlijentu[Ime potencijalnog klijenta] <> \"\", ROW(PredviđenaProdaja[Ime potencijalnog klijenta])<>PoslednjaStavka),PodaciOPotencijalnomKlijentu[Ime potencijalnog klijenta], \"\"),\"\")","v":""},{"$f":"IFERROR(IF(PodaciOPotencijalnomKlijentu[Predviđanje \nZatvori] <>\"\",IF(PodaciOPotencijalnomKlijentu[Predviđanje \nZatvori]= \"Januar\",PodaciOPotencijalnomKlijentu[Ponderisano predviđanje],0),\"\"),\"\")","v":""},{"$f":"IFERROR(IF(PodaciOPotencijalnomKlijentu[Predviđanje \nZatvori] <>\"\",IF(PodaciOPotencijalnomKlijentu[Predviđanje \nZatvori] = \"Februar\",PodaciOPotencijalnomKlijentu[Ponderisano predviđanje],0),\"\"),\"\")","v":""},{"$f":"IFERROR(IF(PodaciOPotencijalnomKlijentu[Predviđanje \nZatvori] <>\"\",IF(PodaciOPotencijalnomKlijentu[Predviđanje \nZatvori] = \"Mart\",PodaciOPotencijalnomKlijentu[Ponderisano predviđanje],0),\"\"),\"\")","v":""},{"$f":"IFERROR(IF(PodaciOPotencijalnomKlijentu[Predviđanje \nZatvori] <>\"\",IF(PodaciOPotencijalnomKlijentu[Predviđanje \nZatvori] = \"April\",PodaciOPotencijalnomKlijentu[Ponderisano predviđanje],0),\"\"),\"\")","v":""},{"$f":"IFERROR(IF(PodaciOPotencijalnomKlijentu[Predviđanje \nZatvori] <>\"\",IF(PodaciOPotencijalnomKlijentu[Predviđanje \nZatvori] = \"Maj\",PodaciOPotencijalnomKlijentu[Ponderisano predviđanje],0),\"\"),\"\")","v":""},{"$f":"IFERROR(IF(PodaciOPotencijalnomKlijentu[Predviđanje \nZatvori] <>\"\",IF(PodaciOPotencijalnomKlijentu[Predviđanje \nZatvori] = \"Jun\",PodaciOPotencijalnomKlijentu[Ponderisano predviđanje],0),\"\"),\"\")","v":""},{"$f":"IFERROR(IF(PodaciOPotencijalnomKlijentu[Predviđanje \nZatvori] <>\"\",IF(PodaciOPotencijalnomKlijentu[Predviđanje \nZatvori] = \"Jul\",PodaciOPotencijalnomKlijentu[Ponderisano predviđanje],0),\"\"),\"\")","v":""},{"$f":"IFERROR(IF(PodaciOPotencijalnomKlijentu[Predviđanje \nZatvori] <>\"\",IF(PodaciOPotencijalnomKlijentu[Predviđanje \nZatvori] = \"Avgust\",PodaciOPotencijalnomKlijentu[Ponderisano predviđanje],0),\"\"),\"\")","v":""},{"$f":"IFERROR(IF(PodaciOPotencijalnomKlijentu[Predviđanje \nZatvori] <>\"\",IF(PodaciOPotencijalnomKlijentu[Predviđanje \nZatvori] = \"Septembar\",PodaciOPotencijalnomKlijentu[Ponderisano predviđanje],0),\"\"),\"\")","v":""},{"$f":"IFERROR(IF(PodaciOPotencijalnomKlijentu[Predviđanje \nZatvori] <>\"\",IF(PodaciOPotencijalnomKlijentu[Predviđanje \nZatvori] = \"Oktobar\",PodaciOPotencijalnomKlijentu[Ponderisano predviđanje],0),\"\"),\"\")","v":""},{"$f":"IFERROR(IF(PodaciOPotencijalnomKlijentu[Predviđanje \nZatvori] <>\"\",IF(PodaciOPotencijalnomKlijentu[Predviđanje \nZatvori] = \"Novembar\",PodaciOPotencijalnomKlijentu[Ponderisano predviđanje],0),\"\"),\"\")","v":""},{"$f":"IFERROR(IF(PodaciOPotencijalnomKlijentu[Predviđanje \nZatvori] <>\"\",IF(PodaciOPotencijalnomKlijentu[Predviđanje \nZatvori] = \"Decembar\",PodaciOPotencijalnomKlijentu[Ponderisano predviđanje],0),\"\"),\"\")","v":""}]
[null,{"$f":"IFERROR(IF(AND(PodaciOPotencijalnomKlijentu[Ime potencijalnog klijenta] <> \"\", ROW(PredviđenaProdaja[Ime potencijalnog klijenta])<>PoslednjaStavka),PodaciOPotencijalnomKlijentu[Ime potencijalnog klijenta], \"\"),\"\")","v":""},{"$f":"IFERROR(IF(PodaciOPotencijalnomKlijentu[Predviđanje \nZatvori] <>\"\",IF(PodaciOPotencijalnomKlijentu[Predviđanje \nZatvori]= \"Januar\",PodaciOPotencijalnomKlijentu[Ponderisano predviđanje],0),\"\"),\"\")","v":""},{"$f":"IFERROR(IF(PodaciOPotencijalnomKlijentu[Predviđanje \nZatvori] <>\"\",IF(PodaciOPotencijalnomKlijentu[Predviđanje \nZatvori] = \"Februar\",PodaciOPotencijalnomKlijentu[Ponderisano predviđanje],0),\"\"),\"\")","v":""},{"$f":"IFERROR(IF(PodaciOPotencijalnomKlijentu[Predviđanje \nZatvori] <>\"\",IF(PodaciOPotencijalnomKlijentu[Predviđanje \nZatvori] = \"Mart\",PodaciOPotencijalnomKlijentu[Ponderisano predviđanje],0),\"\"),\"\")","v":""},{"$f":"IFERROR(IF(PodaciOPotencijalnomKlijentu[Predviđanje \nZatvori] <>\"\",IF(PodaciOPotencijalnomKlijentu[Predviđanje \nZatvori] = \"April\",PodaciOPotencijalnomKlijentu[Ponderisano predviđanje],0),\"\"),\"\")","v":""},{"$f":"IFERROR(IF(PodaciOPotencijalnomKlijentu[Predviđanje \nZatvori] <>\"\",IF(PodaciOPotencijalnomKlijentu[Predviđanje \nZatvori] = \"Maj\",PodaciOPotencijalnomKlijentu[Ponderisano predviđanje],0),\"\"),\"\")","v":""},{"$f":"IFERROR(IF(PodaciOPotencijalnomKlijentu[Predviđanje \nZatvori] <>\"\",IF(PodaciOPotencijalnomKlijentu[Predviđanje \nZatvori] = \"Jun\",PodaciOPotencijalnomKlijentu[Ponderisano predviđanje],0),\"\"),\"\")","v":""},{"$f":"IFERROR(IF(PodaciOPotencijalnomKlijentu[Predviđanje \nZatvori] <>\"\",IF(PodaciOPotencijalnomKlijentu[Predviđanje \nZatvori] = \"Jul\",PodaciOPotencijalnomKlijentu[Ponderisano predviđanje],0),\"\"),\"\")","v":""},{"$f":"IFERROR(IF(PodaciOPotencijalnomKlijentu[Predviđanje \nZatvori] <>\"\",IF(PodaciOPotencijalnomKlijentu[Predviđanje \nZatvori] = \"Avgust\",PodaciOPotencijalnomKlijentu[Ponderisano predviđanje],0),\"\"),\"\")","v":""},{"$f":"IFERROR(IF(PodaciOPotencijalnomKlijentu[Predviđanje \nZatvori] <>\"\",IF(PodaciOPotencijalnomKlijentu[Predviđanje \nZatvori] = \"Septembar\",PodaciOPotencijalnomKlijentu[Ponderisano predviđanje],0),\"\"),\"\")","v":""},{"$f":"IFERROR(IF(PodaciOPotencijalnomKlijentu[Predviđanje \nZatvori] <>\"\",IF(PodaciOPotencijalnomKlijentu[Predviđanje \nZatvori] = \"Oktobar\",PodaciOPotencijalnomKlijentu[Ponderisano predviđanje],0),\"\"),\"\")","v":""},{"$f":"IFERROR(IF(PodaciOPotencijalnomKlijentu[Predviđanje \nZatvori] <>\"\",IF(PodaciOPotencijalnomKlijentu[Predviđanje \nZatvori] = \"Novembar\",PodaciOPotencijalnomKlijentu[Ponderisano predviđanje],0),\"\"),\"\")","v":""},{"$f":"IFERROR(IF(PodaciOPotencijalnomKlijentu[Predviđanje \nZatvori] <>\"\",IF(PodaciOPotencijalnomKlijentu[Predviđanje \nZatvori] = \"Decembar\",PodaciOPotencijalnomKlijentu[Ponderisano predviđanje],0),\"\"),\"\")","v":""}]
[null,{"$f":"IFERROR(IF(AND(PodaciOPotencijalnomKlijentu[Ime potencijalnog klijenta] <> \"\", ROW(PredviđenaProdaja[Ime potencijalnog klijenta])<>PoslednjaStavka),PodaciOPotencijalnomKlijentu[Ime potencijalnog klijenta], \"\"),\"\")","v":""},{"$f":"IFERROR(IF(PodaciOPotencijalnomKlijentu[Predviđanje \nZatvori] <>\"\",IF(PodaciOPotencijalnomKlijentu[Predviđanje \nZatvori]= \"Januar\",PodaciOPotencijalnomKlijentu[Ponderisano predviđanje],0),\"\"),\"\")","v":""},{"$f":"IFERROR(IF(PodaciOPotencijalnomKlijentu[Predviđanje \nZatvori] <>\"\",IF(PodaciOPotencijalnomKlijentu[Predviđanje \nZatvori] = \"Februar\",PodaciOPotencijalnomKlijentu[Ponderisano predviđanje],0),\"\"),\"\")","v":""},{"$f":"IFERROR(IF(PodaciOPotencijalnomKlijentu[Predviđanje \nZatvori] <>\"\",IF(PodaciOPotencijalnomKlijentu[Predviđanje \nZatvori] = \"Mart\",PodaciOPotencijalnomKlijentu[Ponderisano predviđanje],0),\"\"),\"\")","v":""},{"$f":"IFERROR(IF(PodaciOPotencijalnomKlijentu[Predviđanje \nZatvori] <>\"\",IF(PodaciOPotencijalnomKlijentu[Predviđanje \nZatvori] = \"April\",PodaciOPotencijalnomKlijentu[Ponderisano predviđanje],0),\"\"),\"\")","v":""},{"$f":"IFERROR(IF(PodaciOPotencijalnomKlijentu[Predviđanje \nZatvori] <>\"\",IF(PodaciOPotencijalnomKlijentu[Predviđanje \nZatvori] = \"Maj\",PodaciOPotencijalnomKlijentu[Ponderisano predviđanje],0),\"\"),\"\")","v":""},{"$f":"IFERROR(IF(PodaciOPotencijalnomKlijentu[Predviđanje \nZatvori] <>\"\",IF(PodaciOPotencijalnomKlijentu[Predviđanje \nZatvori] = \"Jun\",PodaciOPotencijalnomKlijentu[Ponderisano predviđanje],0),\"\"),\"\")","v":""},{"$f":"IFERROR(IF(PodaciOPotencijalnomKlijentu[Predviđanje \nZatvori] <>\"\",IF(PodaciOPotencijalnomKlijentu[Predviđanje \nZatvori] = \"Jul\",PodaciOPotencijalnomKlijentu[Ponderisano predviđanje],0),\"\"),\"\")","v":""},{"$f":"IFERROR(IF(PodaciOPotencijalnomKlijentu[Predviđanje \nZatvori] <>\"\",IF(PodaciOPotencijalnomKlijentu[Predviđanje \nZatvori] = \"Avgust\",PodaciOPotencijalnomKlijentu[Ponderisano predviđanje],0),\"\"),\"\")","v":""},{"$f":"IFERROR(IF(PodaciOPotencijalnomKlijentu[Predviđanje \nZatvori] <>\"\",IF(PodaciOPotencijalnomKlijentu[Predviđanje \nZatvori] = \"Septembar\",PodaciOPotencijalnomKlijentu[Ponderisano predviđanje],0),\"\"),\"\")","v":""},{"$f":"IFERROR(IF(PodaciOPotencijalnomKlijentu[Predviđanje \nZatvori] <>\"\",IF(PodaciOPotencijalnomKlijentu[Predviđanje \nZatvori] = \"Oktobar\",PodaciOPotencijalnomKlijentu[Ponderisano predviđanje],0),\"\"),\"\")","v":""},{"$f":"IFERROR(IF(PodaciOPotencijalnomKlijentu[Predviđanje \nZatvori] <>\"\",IF(PodaciOPotencijalnomKlijentu[Predviđanje \nZatvori] = \"Novembar\",PodaciOPotencijalnomKlijentu[Ponderisano predviđanje],0),\"\"),\"\")","v":""},{"$f":"IFERROR(IF(PodaciOPotencijalnomKlijentu[Predviđanje \nZatvori] <>\"\",IF(PodaciOPotencijalnomKlijentu[Predviđanje \nZatvori] = \"Decembar\",PodaciOPotencijalnomKlijentu[Ponderisano predviđanje],0),\"\"),\"\")","v":""}]
[null,{"$f":"IFERROR(IF(AND(PodaciOPotencijalnomKlijentu[Ime potencijalnog klijenta] <> \"\", ROW(PredviđenaProdaja[Ime potencijalnog klijenta])<>PoslednjaStavka),PodaciOPotencijalnomKlijentu[Ime potencijalnog klijenta], \"\"),\"\")","v":""},{"$f":"IFERROR(IF(PodaciOPotencijalnomKlijentu[Predviđanje \nZatvori] <>\"\",IF(PodaciOPotencijalnomKlijentu[Predviđanje \nZatvori]= \"Januar\",PodaciOPotencijalnomKlijentu[Ponderisano predviđanje],0),\"\"),\"\")","v":""},{"$f":"IFERROR(IF(PodaciOPotencijalnomKlijentu[Predviđanje \nZatvori] <>\"\",IF(PodaciOPotencijalnomKlijentu[Predviđanje \nZatvori] = \"Februar\",PodaciOPotencijalnomKlijentu[Ponderisano predviđanje],0),\"\"),\"\")","v":""},{"$f":"IFERROR(IF(PodaciOPotencijalnomKlijentu[Predviđanje \nZatvori] <>\"\",IF(PodaciOPotencijalnomKlijentu[Predviđanje \nZatvori] = \"Mart\",PodaciOPotencijalnomKlijentu[Ponderisano predviđanje],0),\"\"),\"\")","v":""},{"$f":"IFERROR(IF(PodaciOPotencijalnomKlijentu[Predviđanje \nZatvori] <>\"\",IF(PodaciOPotencijalnomKlijentu[Predviđanje \nZatvori] = \"April\",PodaciOPotencijalnomKlijentu[Ponderisano predviđanje],0),\"\"),\"\")","v":""},{"$f":"IFERROR(IF(PodaciOPotencijalnomKlijentu[Predviđanje \nZatvori] <>\"\",IF(PodaciOPotencijalnomKlijentu[Predviđanje \nZatvori] = \"Maj\",PodaciOPotencijalnomKlijentu[Ponderisano predviđanje],0),\"\"),\"\")","v":""},{"$f":"IFERROR(IF(PodaciOPotencijalnomKlijentu[Predviđanje \nZatvori] <>\"\",IF(PodaciOPotencijalnomKlijentu[Predviđanje \nZatvori] = \"Jun\",PodaciOPotencijalnomKlijentu[Ponderisano predviđanje],0),\"\"),\"\")","v":""},{"$f":"IFERROR(IF(PodaciOPotencijalnomKlijentu[Predviđanje \nZatvori] <>\"\",IF(PodaciOPotencijalnomKlijentu[Predviđanje \nZatvori] = \"Jul\",PodaciOPotencijalnomKlijentu[Ponderisano predviđanje],0),\"\"),\"\")","v":""},{"$f":"IFERROR(IF(PodaciOPotencijalnomKlijentu[Predviđanje \nZatvori] <>\"\",IF(PodaciOPotencijalnomKlijentu[Predviđanje \nZatvori] = \"Avgust\",PodaciOPotencijalnomKlijentu[Ponderisano predviđanje],0),\"\"),\"\")","v":""},{"$f":"IFERROR(IF(PodaciOPotencijalnomKlijentu[Predviđanje \nZatvori] <>\"\",IF(PodaciOPotencijalnomKlijentu[Predviđanje \nZatvori] = \"Septembar\",PodaciOPotencijalnomKlijentu[Ponderisano predviđanje],0),\"\"),\"\")","v":""},{"$f":"IFERROR(IF(PodaciOPotencijalnomKlijentu[Predviđanje \nZatvori] <>\"\",IF(PodaciOPotencijalnomKlijentu[Predviđanje \nZatvori] = \"Oktobar\",PodaciOPotencijalnomKlijentu[Ponderisano predviđanje],0),\"\"),\"\")","v":""},{"$f":"IFERROR(IF(PodaciOPotencijalnomKlijentu[Predviđanje \nZatvori] <>\"\",IF(PodaciOPotencijalnomKlijentu[Predviđanje \nZatvori] = \"Novembar\",PodaciOPotencijalnomKlijentu[Ponderisano predviđanje],0),\"\"),\"\")","v":""},{"$f":"IFERROR(IF(PodaciOPotencijalnomKlijentu[Predviđanje \nZatvori] <>\"\",IF(PodaciOPotencijalnomKlijentu[Predviđanje \nZatvori] = \"Decembar\",PodaciOPotencijalnomKlijentu[Ponderisano predviđanje],0),\"\"),\"\")","v":""}]
[null,{"$f":"IFERROR(IF(AND(PodaciOPotencijalnomKlijentu[Ime potencijalnog klijenta] <> \"\", ROW(PredviđenaProdaja[Ime potencijalnog klijenta])<>PoslednjaStavka),PodaciOPotencijalnomKlijentu[Ime potencijalnog klijenta], \"\"),\"\")","v":""},{"$f":"IFERROR(IF(PodaciOPotencijalnomKlijentu[Predviđanje \nZatvori] <>\"\",IF(PodaciOPotencijalnomKlijentu[Predviđanje \nZatvori]= \"Januar\",PodaciOPotencijalnomKlijentu[Ponderisano predviđanje],0),\"\"),\"\")","v":""},{"$f":"IFERROR(IF(PodaciOPotencijalnomKlijentu[Predviđanje \nZatvori] <>\"\",IF(PodaciOPotencijalnomKlijentu[Predviđanje \nZatvori] = \"Februar\",PodaciOPotencijalnomKlijentu[Ponderisano predviđanje],0),\"\"),\"\")","v":""},{"$f":"IFERROR(IF(PodaciOPotencijalnomKlijentu[Predviđanje \nZatvori] <>\"\",IF(PodaciOPotencijalnomKlijentu[Predviđanje \nZatvori] = \"Mart\",PodaciOPotencijalnomKlijentu[Ponderisano predviđanje],0),\"\"),\"\")","v":""},{"$f":"IFERROR(IF(PodaciOPotencijalnomKlijentu[Predviđanje \nZatvori] <>\"\",IF(PodaciOPotencijalnomKlijentu[Predviđanje \nZatvori] = \"April\",PodaciOPotencijalnomKlijentu[Ponderisano predviđanje],0),\"\"),\"\")","v":""},{"$f":"IFERROR(IF(PodaciOPotencijalnomKlijentu[Predviđanje \nZatvori] <>\"\",IF(PodaciOPotencijalnomKlijentu[Predviđanje \nZatvori] = \"Maj\",PodaciOPotencijalnomKlijentu[Ponderisano predviđanje],0),\"\"),\"\")","v":""},{"$f":"IFERROR(IF(PodaciOPotencijalnomKlijentu[Predviđanje \nZatvori] <>\"\",IF(PodaciOPotencijalnomKlijentu[Predviđanje \nZatvori] = \"Jun\",PodaciOPotencijalnomKlijentu[Ponderisano predviđanje],0),\"\"),\"\")","v":""},{"$f":"IFERROR(IF(PodaciOPotencijalnomKlijentu[Predviđanje \nZatvori] <>\"\",IF(PodaciOPotencijalnomKlijentu[Predviđanje \nZatvori] = \"Jul\",PodaciOPotencijalnomKlijentu[Ponderisano predviđanje],0),\"\"),\"\")","v":""},{"$f":"IFERROR(IF(PodaciOPotencijalnomKlijentu[Predviđanje \nZatvori] <>\"\",IF(PodaciOPotencijalnomKlijentu[Predviđanje \nZatvori] = \"Avgust\",PodaciOPotencijalnomKlijentu[Ponderisano predviđanje],0),\"\"),\"\")","v":""},{"$f":"IFERROR(IF(PodaciOPotencijalnomKlijentu[Predviđanje \nZatvori] <>\"\",IF(PodaciOPotencijalnomKlijentu[Predviđanje \nZatvori] = \"Septembar\",PodaciOPotencijalnomKlijentu[Ponderisano predviđanje],0),\"\"),\"\")","v":""},{"$f":"IFERROR(IF(PodaciOPotencijalnomKlijentu[Predviđanje \nZatvori] <>\"\",IF(PodaciOPotencijalnomKlijentu[Predviđanje \nZatvori] = \"Oktobar\",PodaciOPotencijalnomKlijentu[Ponderisano predviđanje],0),\"\"),\"\")","v":""},{"$f":"IFERROR(IF(PodaciOPotencijalnomKlijentu[Predviđanje \nZatvori] <>\"\",IF(PodaciOPotencijalnomKlijentu[Predviđanje \nZatvori] = \"Novembar\",PodaciOPotencijalnomKlijentu[Ponderisano predviđanje],0),\"\"),\"\")","v":""},{"$f":"IFERROR(IF(PodaciOPotencijalnomKlijentu[Predviđanje \nZatvori] <>\"\",IF(PodaciOPotencijalnomKlijentu[Predviđanje \nZatvori] = \"Decembar\",PodaciOPotencijalnomKlijentu[Ponderisano predviđanje],0),\"\"),\"\")","v":""}]
[null,{"$f":"IFERROR(IF(AND(PodaciOPotencijalnomKlijentu[Ime potencijalnog klijenta] <> \"\", ROW(PredviđenaProdaja[Ime potencijalnog klijenta])<>PoslednjaStavka),PodaciOPotencijalnomKlijentu[Ime potencijalnog klijenta], \"\"),\"\")","v":""},{"$f":"IFERROR(IF(PodaciOPotencijalnomKlijentu[Predviđanje \nZatvori] <>\"\",IF(PodaciOPotencijalnomKlijentu[Predviđanje \nZatvori]= \"Januar\",PodaciOPotencijalnomKlijentu[Ponderisano predviđanje],0),\"\"),\"\")","v":""},{"$f":"IFERROR(IF(PodaciOPotencijalnomKlijentu[Predviđanje \nZatvori] <>\"\",IF(PodaciOPotencijalnomKlijentu[Predviđanje \nZatvori] = \"Februar\",PodaciOPotencijalnomKlijentu[Ponderisano predviđanje],0),\"\"),\"\")","v":""},{"$f":"IFERROR(IF(PodaciOPotencijalnomKlijentu[Predviđanje \nZatvori] <>\"\",IF(PodaciOPotencijalnomKlijentu[Predviđanje \nZatvori] = \"Mart\",PodaciOPotencijalnomKlijentu[Ponderisano predviđanje],0),\"\"),\"\")","v":""},{"$f":"IFERROR(IF(PodaciOPotencijalnomKlijentu[Predviđanje \nZatvori] <>\"\",IF(PodaciOPotencijalnomKlijentu[Predviđanje \nZatvori] = \"April\",PodaciOPotencijalnomKlijentu[Ponderisano predviđanje],0),\"\"),\"\")","v":""},{"$f":"IFERROR(IF(PodaciOPotencijalnomKlijentu[Predviđanje \nZatvori] <>\"\",IF(PodaciOPotencijalnomKlijentu[Predviđanje \nZatvori] = \"Maj\",PodaciOPotencijalnomKlijentu[Ponderisano predviđanje],0),\"\"),\"\")","v":""},{"$f":"IFERROR(IF(PodaciOPotencijalnomKlijentu[Predviđanje \nZatvori] <>\"\",IF(PodaciOPotencijalnomKlijentu[Predviđanje \nZatvori] = \"Jun\",PodaciOPotencijalnomKlijentu[Ponderisano predviđanje],0),\"\"),\"\")","v":""},{"$f":"IFERROR(IF(PodaciOPotencijalnomKlijentu[Predviđanje \nZatvori] <>\"\",IF(PodaciOPotencijalnomKlijentu[Predviđanje \nZatvori] = \"Jul\",PodaciOPotencijalnomKlijentu[Ponderisano predviđanje],0),\"\"),\"\")","v":""},{"$f":"IFERROR(IF(PodaciOPotencijalnomKlijentu[Predviđanje \nZatvori] <>\"\",IF(PodaciOPotencijalnomKlijentu[Predviđanje \nZatvori] = \"Avgust\",PodaciOPotencijalnomKlijentu[Ponderisano predviđanje],0),\"\"),\"\")","v":""},{"$f":"IFERROR(IF(PodaciOPotencijalnomKlijentu[Predviđanje \nZatvori] <>\"\",IF(PodaciOPotencijalnomKlijentu[Predviđanje \nZatvori] = \"Septembar\",PodaciOPotencijalnomKlijentu[Ponderisano predviđanje],0),\"\"),\"\")","v":""},{"$f":"IFERROR(IF(PodaciOPotencijalnomKlijentu[Predviđanje \nZatvori] <>\"\",IF(PodaciOPotencijalnomKlijentu[Predviđanje \nZatvori] = \"Oktobar\",PodaciOPotencijalnomKlijentu[Ponderisano predviđanje],0),\"\"),\"\")","v":""},{"$f":"IFERROR(IF(PodaciOPotencijalnomKlijentu[Predviđanje \nZatvori] <>\"\",IF(PodaciOPotencijalnomKlijentu[Predviđanje \nZatvori] = \"Novembar\",PodaciOPotencijalnomKlijentu[Ponderisano predviđanje],0),\"\"),\"\")","v":""},{"$f":"IFERROR(IF(PodaciOPotencijalnomKlijentu[Predviđanje \nZatvori] <>\"\",IF(PodaciOPotencijalnomKlijentu[Predviđanje \nZatvori] = \"Decembar\",PodaciOPotencijalnomKlijentu[Ponderisano predviđanje],0),\"\"),\"\")","v":""}]
[null,{"$f":"IFERROR(IF(AND(PodaciOPotencijalnomKlijentu[Ime potencijalnog klijenta] <> \"\", ROW(PredviđenaProdaja[Ime potencijalnog klijenta])<>PoslednjaStavka),PodaciOPotencijalnomKlijentu[Ime potencijalnog klijenta], \"\"),\"\")","v":""},{"$f":"IFERROR(IF(PodaciOPotencijalnomKlijentu[Predviđanje \nZatvori] <>\"\",IF(PodaciOPotencijalnomKlijentu[Predviđanje \nZatvori]= \"Januar\",PodaciOPotencijalnomKlijentu[Ponderisano predviđanje],0),\"\"),\"\")","v":""},{"$f":"IFERROR(IF(PodaciOPotencijalnomKlijentu[Predviđanje \nZatvori] <>\"\",IF(PodaciOPotencijalnomKlijentu[Predviđanje \nZatvori] = \"Februar\",PodaciOPotencijalnomKlijentu[Ponderisano predviđanje],0),\"\"),\"\")","v":""},{"$f":"IFERROR(IF(PodaciOPotencijalnomKlijentu[Predviđanje \nZatvori] <>\"\",IF(PodaciOPotencijalnomKlijentu[Predviđanje \nZatvori] = \"Mart\",PodaciOPotencijalnomKlijentu[Ponderisano predviđanje],0),\"\"),\"\")","v":""},{"$f":"IFERROR(IF(PodaciOPotencijalnomKlijentu[Predviđanje \nZatvori] <>\"\",IF(PodaciOPotencijalnomKlijentu[Predviđanje \nZatvori] = \"April\",PodaciOPotencijalnomKlijentu[Ponderisano predviđanje],0),\"\"),\"\")","v":""},{"$f":"IFERROR(IF(PodaciOPotencijalnomKlijentu[Predviđanje \nZatvori] <>\"\",IF(PodaciOPotencijalnomKlijentu[Predviđanje \nZatvori] = \"Maj\",PodaciOPotencijalnomKlijentu[Ponderisano predviđanje],0),\"\"),\"\")","v":""},{"$f":"IFERROR(IF(PodaciOPotencijalnomKlijentu[Predviđanje \nZatvori] <>\"\",IF(PodaciOPotencijalnomKlijentu[Predviđanje \nZatvori] = \"Jun\",PodaciOPotencijalnomKlijentu[Ponderisano predviđanje],0),\"\"),\"\")","v":""},{"$f":"IFERROR(IF(PodaciOPotencijalnomKlijentu[Predviđanje \nZatvori] <>\"\",IF(PodaciOPotencijalnomKlijentu[Predviđanje \nZatvori] = \"Jul\",PodaciOPotencijalnomKlijentu[Ponderisano predviđanje],0),\"\"),\"\")","v":""},{"$f":"IFERROR(IF(PodaciOPotencijalnomKlijentu[Predviđanje \nZatvori] <>\"\",IF(PodaciOPotencijalnomKlijentu[Predviđanje \nZatvori] = \"Avgust\",PodaciOPotencijalnomKlijentu[Ponderisano predviđanje],0),\"\"),\"\")","v":""},{"$f":"IFERROR(IF(PodaciOPotencijalnomKlijentu[Predviđanje \nZatvori] <>\"\",IF(PodaciOPotencijalnomKlijentu[Predviđanje \nZatvori] = \"Septembar\",PodaciOPotencijalnomKlijentu[Ponderisano predviđanje],0),\"\"),\"\")","v":""},{"$f":"IFERROR(IF(PodaciOPotencijalnomKlijentu[Predviđanje \nZatvori] <>\"\",IF(PodaciOPotencijalnomKlijentu[Predviđanje \nZatvori] = \"Oktobar\",PodaciOPotencijalnomKlijentu[Ponderisano predviđanje],0),\"\"),\"\")","v":""},{"$f":"IFERROR(IF(PodaciOPotencijalnomKlijentu[Predviđanje \nZatvori] <>\"\",IF(PodaciOPotencijalnomKlijentu[Predviđanje \nZatvori] = \"Novembar\",PodaciOPotencijalnomKlijentu[Ponderisano predviđanje],0),\"\"),\"\")","v":""},{"$f":"IFERROR(IF(PodaciOPotencijalnomKlijentu[Predviđanje \nZatvori] <>\"\",IF(PodaciOPotencijalnomKlijentu[Predviđanje \nZatvori] = \"Decembar\",PodaciOPotencijalnomKlijentu[Ponderisano predviđanje],0),\"\"),\"\")","v":""}]
[null,{"$f":"IFERROR(IF(AND(PodaciOPotencijalnomKlijentu[Ime potencijalnog klijenta] <> \"\", ROW(PredviđenaProdaja[Ime potencijalnog klijenta])<>PoslednjaStavka),PodaciOPotencijalnomKlijentu[Ime potencijalnog klijenta], \"\"),\"\")","v":""},{"$f":"IFERROR(IF(PodaciOPotencijalnomKlijentu[Predviđanje \nZatvori] <>\"\",IF(PodaciOPotencijalnomKlijentu[Predviđanje \nZatvori]= \"Januar\",PodaciOPotencijalnomKlijentu[Ponderisano predviđanje],0),\"\"),\"\")","v":""},{"$f":"IFERROR(IF(PodaciOPotencijalnomKlijentu[Predviđanje \nZatvori] <>\"\",IF(PodaciOPotencijalnomKlijentu[Predviđanje \nZatvori] = \"Februar\",PodaciOPotencijalnomKlijentu[Ponderisano predviđanje],0),\"\"),\"\")","v":""},{"$f":"IFERROR(IF(PodaciOPotencijalnomKlijentu[Predviđanje \nZatvori] <>\"\",IF(PodaciOPotencijalnomKlijentu[Predviđanje \nZatvori] = \"Mart\",PodaciOPotencijalnomKlijentu[Ponderisano predviđanje],0),\"\"),\"\")","v":""},{"$f":"IFERROR(IF(PodaciOPotencijalnomKlijentu[Predviđanje \nZatvori] <>\"\",IF(PodaciOPotencijalnomKlijentu[Predviđanje \nZatvori] = \"April\",PodaciOPotencijalnomKlijentu[Ponderisano predviđanje],0),\"\"),\"\")","v":""},{"$f":"IFERROR(IF(PodaciOPotencijalnomKlijentu[Predviđanje \nZatvori] <>\"\",IF(PodaciOPotencijalnomKlijentu[Predviđanje \nZatvori] = \"Maj\",PodaciOPotencijalnomKlijentu[Ponderisano predviđanje],0),\"\"),\"\")","v":""},{"$f":"IFERROR(IF(PodaciOPotencijalnomKlijentu[Predviđanje \nZatvori] <>\"\",IF(PodaciOPotencijalnomKlijentu[Predviđanje \nZatvori] = \"Jun\",PodaciOPotencijalnomKlijentu[Ponderisano predviđanje],0),\"\"),\"\")","v":""},{"$f":"IFERROR(IF(PodaciOPotencijalnomKlijentu[Predviđanje \nZatvori] <>\"\",IF(PodaciOPotencijalnomKlijentu[Predviđanje \nZatvori] = \"Jul\",PodaciOPotencijalnomKlijentu[Ponderisano predviđanje],0),\"\"),\"\")","v":""},{"$f":"IFERROR(IF(PodaciOPotencijalnomKlijentu[Predviđanje \nZatvori] <>\"\",IF(PodaciOPotencijalnomKlijentu[Predviđanje \nZatvori] = \"Avgust\",PodaciOPotencijalnomKlijentu[Ponderisano predviđanje],0),\"\"),\"\")","v":""},{"$f":"IFERROR(IF(PodaciOPotencijalnomKlijentu[Predviđanje \nZatvori] <>\"\",IF(PodaciOPotencijalnomKlijentu[Predviđanje \nZatvori] = \"Septembar\",PodaciOPotencijalnomKlijentu[Ponderisano predviđanje],0),\"\"),\"\")","v":""},{"$f":"IFERROR(IF(PodaciOPotencijalnomKlijentu[Predviđanje \nZatvori] <>\"\",IF(PodaciOPotencijalnomKlijentu[Predviđanje \nZatvori] = \"Oktobar\",PodaciOPotencijalnomKlijentu[Ponderisano predviđanje],0),\"\"),\"\")","v":""},{"$f":"IFERROR(IF(PodaciOPotencijalnomKlijentu[Predviđanje \nZatvori] <>\"\",IF(PodaciOPotencijalnomKlijentu[Predviđanje \nZatvori] = \"Novembar\",PodaciOPotencijalnomKlijentu[Ponderisano predviđanje],0),\"\"),\"\")","v":""},{"$f":"IFERROR(IF(PodaciOPotencijalnomKlijentu[Predviđanje \nZatvori] <>\"\",IF(PodaciOPotencijalnomKlijentu[Predviđanje \nZatvori] = \"Decembar\",PodaciOPotencijalnomKlijentu[Ponderisano predviđanje],0),\"\"),\"\")","v":""}]
[null,{"$f":"IFERROR(IF(AND(PodaciOPotencijalnomKlijentu[Ime potencijalnog klijenta] <> \"\", ROW(PredviđenaProdaja[Ime potencijalnog klijenta])<>PoslednjaStavka),PodaciOPotencijalnomKlijentu[Ime potencijalnog klijenta], \"\"),\"\")","v":""},{"$f":"IFERROR(IF(PodaciOPotencijalnomKlijentu[Predviđanje \nZatvori] <>\"\",IF(PodaciOPotencijalnomKlijentu[Predviđanje \nZatvori]= \"Januar\",PodaciOPotencijalnomKlijentu[Ponderisano predviđanje],0),\"\"),\"\")","v":""},{"$f":"IFERROR(IF(PodaciOPotencijalnomKlijentu[Predviđanje \nZatvori] <>\"\",IF(PodaciOPotencijalnomKlijentu[Predviđanje \nZatvori] = \"Februar\",PodaciOPotencijalnomKlijentu[Ponderisano predviđanje],0),\"\"),\"\")","v":""},{"$f":"IFERROR(IF(PodaciOPotencijalnomKlijentu[Predviđanje \nZatvori] <>\"\",IF(PodaciOPotencijalnomKlijentu[Predviđanje \nZatvori] = \"Mart\",PodaciOPotencijalnomKlijentu[Ponderisano predviđanje],0),\"\"),\"\")","v":""},{"$f":"IFERROR(IF(PodaciOPotencijalnomKlijentu[Predviđanje \nZatvori] <>\"\",IF(PodaciOPotencijalnomKlijentu[Predviđanje \nZatvori] = \"April\",PodaciOPotencijalnomKlijentu[Ponderisano predviđanje],0),\"\"),\"\")","v":""},{"$f":"IFERROR(IF(PodaciOPotencijalnomKlijentu[Predviđanje \nZatvori] <>\"\",IF(PodaciOPotencijalnomKlijentu[Predviđanje \nZatvori] = \"Maj\",PodaciOPotencijalnomKlijentu[Ponderisano predviđanje],0),\"\"),\"\")","v":""},{"$f":"IFERROR(IF(PodaciOPotencijalnomKlijentu[Predviđanje \nZatvori] <>\"\",IF(PodaciOPotencijalnomKlijentu[Predviđanje \nZatvori] = \"Jun\",PodaciOPotencijalnomKlijentu[Ponderisano predviđanje],0),\"\"),\"\")","v":""},{"$f":"IFERROR(IF(PodaciOPotencijalnomKlijentu[Predviđanje \nZatvori] <>\"\",IF(PodaciOPotencijalnomKlijentu[Predviđanje \nZatvori] = \"Jul\",PodaciOPotencijalnomKlijentu[Ponderisano predviđanje],0),\"\"),\"\")","v":""},{"$f":"IFERROR(IF(PodaciOPotencijalnomKlijentu[Predviđanje \nZatvori] <>\"\",IF(PodaciOPotencijalnomKlijentu[Predviđanje \nZatvori] = \"Avgust\",PodaciOPotencijalnomKlijentu[Ponderisano predviđanje],0),\"\"),\"\")","v":""},{"$f":"IFERROR(IF(PodaciOPotencijalnomKlijentu[Predviđanje \nZatvori] <>\"\",IF(PodaciOPotencijalnomKlijentu[Predviđanje \nZatvori] = \"Septembar\",PodaciOPotencijalnomKlijentu[Ponderisano predviđanje],0),\"\"),\"\")","v":""},{"$f":"IFERROR(IF(PodaciOPotencijalnomKlijentu[Predviđanje \nZatvori] <>\"\",IF(PodaciOPotencijalnomKlijentu[Predviđanje \nZatvori] = \"Oktobar\",PodaciOPotencijalnomKlijentu[Ponderisano predviđanje],0),\"\"),\"\")","v":""},{"$f":"IFERROR(IF(PodaciOPotencijalnomKlijentu[Predviđanje \nZatvori] <>\"\",IF(PodaciOPotencijalnomKlijentu[Predviđanje \nZatvori] = \"Novembar\",PodaciOPotencijalnomKlijentu[Ponderisano predviđanje],0),\"\"),\"\")","v":""},{"$f":"IFERROR(IF(PodaciOPotencijalnomKlijentu[Predviđanje \nZatvori] <>\"\",IF(PodaciOPotencijalnomKlijentu[Predviđanje \nZatvori] = \"Decembar\",PodaciOPotencijalnomKlijentu[Ponderisano predviđanje],0),\"\"),\"\")","v":""}]
[null,"Zbir",{"$f":"SUBTOTAL(109,PredviđenaProdaja[Januar \nPredviđanje])","v":{"v":270000,"d":"270,000 RSD"}},{"$f":"SUBTOTAL(109,PredviđenaProdaja[Februar \nPredviđanje])","v":{"v":20000,"d":"20,000 RSD"}},{"$f":"SUBTOTAL(109,PredviđenaProdaja[Mart \nPredviđanje])","v":{"v":20000,"d":"20,000 RSD"}},{"$f":"SUBTOTAL(109,PredviđenaProdaja[April \nPredviđanje])","v":{"v":0,"d":"0 RSD"}},{"$f":"SUBTOTAL(109,PredviđenaProdaja[Maj \nPredviđanje])","v":{"v":0,"d":"0 RSD"}},{"$f":"SUBTOTAL(109,PredviđenaProdaja[Jun \nPredviđanje])","v":{"v":0,"d":"0 RSD"}},{"$f":"SUBTOTAL(109,PredviđenaProdaja[Predviđanje za jul])","v":{"v":0,"d":"0 RSD"}},{"$f":"SUBTOTAL(109,PredviđenaProdaja[Avgust \nPredviđanje])","v":{"v":0,"d":"0 RSD"}},{"$f":"SUBTOTAL(109,PredviđenaProdaja[Septembar \nPredviđanje])","v":{"v":0,"d":"0 RSD"}},{"$f":"SUBTOTAL(109,PredviđenaProdaja[Oktobar \nPredviđanje])","v":{"v":0,"d":"0 RSD"}},{"$f":"SUBTOTAL(109,PredviđenaProdaja[Novembar \nPredviđanje])","v":{"v":0,"d":"0 RSD"}},{"$f":"SUBTOTAL(109,PredviđenaProdaja[Decembar \nPredviđanje])","v":{"v":0,"d":"0 RSD"}}]
[null,"Ukupno kumulativno",{"$f":"C20","v":{"v":270000,"d":"270,000 RSD"}},{"$f":"C21+D20","v":{"v":290000,"d":"290,000 RSD"}},{"$f":"D21+E20","v":{"v":310000,"d":"310,000 RSD"}},{"$f":"E21+F20","v":{"v":310000,"d":"310,000 RSD"}},{"$f":"F21+G20","v":{"v":310000,"d":"310,000 RSD"}},{"$f":"G21+H20","v":{"v":310000,"d":"310,000 RSD"}},{"$f":"H21+I20","v":{"v":310000,"d":"310,000 RSD"}},{"$f":"I21+J20","v":{"v":310000,"d":"310,000 RSD"}},{"$f":"J21+K20","v":{"v":310000,"d":"310,000 RSD"}},{"$f":"K21+L20","v":{"v":310000,"d":"310,000 RSD"}},{"$f":"L21+M20","v":{"v":310000,"d":"310,000 RSD"}},{"$f":"M21+N20","v":{"v":310000,"d":"310,000 RSD"}}]

{"sheet":"Mesečna ponderisana predviđanja","index":2,"n_rows":3,"n_cols":2,"rows_kept":3}
[null,{"$f":"Ime_preduzeća","v":"Ime preduzeća"}]
[null,"Mesečna ponderisana predviđanja"]
[null," "]